[Event "Titled Tuesday Blitz June 6 Late 2023"]
[White "Yanayt, Eugene"]
[Black "Eidelman, Gabriel"]
[WhiteFideId "2020165"]
[BlackFideId "30910544"]
[WhiteElo "2083"]
[BlackElo "2445"]
[Result "0-1"]
[Round "9"]
[TimeControl "180+2"]
[Date "2023.06.07"]
[WhiteClock "0:00:03"]
[BlackClock "0:00:31"]
[Board "82"]

1. d4 {[%clk 0:03:00]}  d6 {[%clk 0:02:55]} 2. Nf3 {[%clk 0:02:59]}  Nf6 {[%clk 0:02:55]} 3. c4 {[%clk 0:02:58]}  g6 {[%clk 0:02:55]} 4. Nc3 {[%clk 0:02:57]}  Bg7 {[%clk 0:02:55]} 5. e4 {[%clk 0:02:57]}  O-O {[%clk 0:02:55]} 6. Be2 {[%clk 0:02:55]}  e5 {[%clk 0:02:55]} 7. O-O {[%clk 0:02:54]}  Na6 {[%clk 0:02:53]} 8. Re1 {[%clk 0:02:53]}  Qe8 {[%clk 0:02:43]} 9. Bf1 {[%clk 0:02:47]}  c6 {[%clk 0:02:40]} 10. d5 {[%clk 0:02:45]}  cxd5 {[%clk 0:02:25]} 11. cxd5 {[%clk 0:02:43]}  Nc5 {[%clk 0:02:24]} 12. b4 {[%clk 0:02:41]}  Ncd7 {[%clk 0:02:08]} 13. Nb5 {[%clk 0:02:36]}  Qe7 {[%clk 0:02:08]} 14. Be3 {[%clk 0:02:18]}  b6 {[%clk 0:01:52]} 15. Bg5 {[%clk 0:01:58]}  h6 {[%clk 0:01:50]} 16. Bh4 {[%clk 0:01:53]}  g5 {[%clk 0:01:45]} 17. Bg3 {[%clk 0:01:53]}  Bb7 {[%clk 0:01:45]} 18. h4 {[%clk 0:01:50]}  g4 {[%clk 0:01:45]} 19. Nd2 {[%clk 0:01:47]}  h5 {[%clk 0:01:38]} 20. Nc7 {[%clk 0:01:20]}  Rac8 {[%clk 0:01:33]} 21. Na6 {[%clk 0:01:17]}  Bh6 {[%clk 0:01:20]} 22. Rb1 {[%clk 0:01:05]}  Rc3 {[%clk 0:01:04]} 23. Rb3 {[%clk 0:01:02]}  Rxb3 {[%clk 0:01:00]} 24. axb3 {[%clk 0:00:59]}  Rc8 {[%clk 0:01:00]} 25. b5 {[%clk 0:00:58]}  Bf4 {[%clk 0:00:58]} 26. Bh2 {[%clk 0:00:44]}  Nc5 {[%clk 0:00:46]} 27. b4 {[%clk 0:00:31]}  Ncd7 {[%clk 0:00:38]} 28. g3 {[%clk 0:00:26]}  Bh6 {[%clk 0:00:37]} 29. Qe2 {[%clk 0:00:14]}  Nf8 {[%clk 0:00:36]} 30. Rd1 {[%clk 0:00:13]}  Ng6 {[%clk 0:00:36]} 31. f3 {[%clk 0:00:12]}  gxf3 {[%clk 0:00:33]} 32. Qxf3 {[%clk 0:00:10]}  Ng4 {[%clk 0:00:33]} 33. Be2 {[%clk 0:00:09]}  Rc2 {[%clk 0:00:31]} 34. Bd3 {[%clk 0:00:06]}  Rxd2 {[%clk 0:00:30]} 35. Rxd2 {[%clk 0:00:06]}  Bxd2 {[%clk 0:00:30]} 36. Qf5 {[%clk 0:00:07]}  Bxa6 {[%clk 0:00:30]} 37. bxa6 {[%clk 0:00:06]}  Qf6 {[%clk 0:00:30]} 38. Qxf6 {[%clk 0:00:03]}  Nxf6 {[%clk 0:00:31]} 39. Kg2 {[%clk 0:00:03]}  Ng4 {[%clk 0:00:31]} 0-1


[Site "https://www.chess.com"]

[Event "Titled Tuesday Blitz June 6 Late 2023"]
[White "mohsengabr2002"]
[Black "Kujawski, Adam"]
[BlackFideId "1100920"]
[WhiteElo "2273"]
[BlackElo "2054"]
[Result "0-1"]
[Round "9"]
[TimeControl "180+2"]
[Date "2023.06.07"]
[WhiteClock "0:00:01"]
[BlackClock "0:00:02"]
[Board "86"]

1. e4 {[%clk 0:01:59]}  e5 {[%clk 0:02:58]} 2. Nc3 {[%clk 0:01:59]}  Nf6 {[%clk 0:02:58]} 3. g3 {[%clk 0:01:59]}  h5 {[%clk 0:02:49]} 4. Bg2 {[%clk 0:01:55]}  h4 {[%clk 0:02:48]} 5. d4 {[%clk 0:01:51]}  exd4 {[%clk 0:02:44]} 6. Qxd4 {[%clk 0:01:48]}  Nc6 {[%clk 0:02:44]} 7. Qa4 {[%clk 0:01:46]}  Bc5 {[%clk 0:02:34]} 8. Nh3 {[%clk 0:01:27]}  d6 {[%clk 0:02:08]} 9. Bg5 {[%clk 0:01:24]}  hxg3 {[%clk 0:01:23]} 10. hxg3 {[%clk 0:01:24]}  Bd7 {[%clk 0:00:47]} 11. O-O-O {[%clk 0:01:21]}  Ne5 {[%clk 0:00:06]} 12. Qb3 {[%clk 0:01:17]}  Be6 {[%clk 0:00:05]} 13. Qa4+ {[%clk 0:01:11]}  Bd7 {[%clk 0:00:05]} 14. Qb3 {[%clk 0:01:03]}  Be6 {[%clk 0:00:06]} 15. Nd5 {[%clk 0:01:03]}  c6 {[%clk 0:00:05]} 16. Qxb7 {[%clk 0:00:21]}  cxd5 {[%clk 0:00:04]} 17. f4 {[%clk 0:00:18]}  Rb8 {[%clk 0:00:04]} 18. Qa6 {[%clk 0:00:17]}  Rb6 {[%clk 0:00:05]} 19. Qe2 {[%clk 0:00:15]}  Nc4 {[%clk 0:00:05]} 20. exd5 {[%clk 0:00:13]}  Nxb2 {[%clk 0:00:05]} 21. dxe6 {[%clk 0:00:11]}  O-O {[%clk 0:00:05]} 22. e7 {[%clk 0:00:09]}  Qb8 {[%clk 0:00:04]} 23. exf8=Q+ {[%clk 0:00:08]}  Kxf8 {[%clk 0:00:05]} 24. Bxf6 {[%clk 0:00:05]}  gxf6 {[%clk 0:00:04]} 25. Rd5 {[%clk 0:00:01]}  Nc4 {[%clk 0:00:04]} 26. Qxc4 {[%clk 0:00:01]}  Rb1+ {[%clk 0:00:04]} 27. Kd2 {[%clk 0:00:01]}  Bb4+ {[%clk 0:00:05]} 28. c3 {[%clk 0:00:01]}  Rb2+ {[%clk 0:00:04]} 29. Kd3 {[%clk 0:00:01]}  Ba5 {[%clk 0:00:02]} 0-1


[Site "https://www.chess.com"]

[Event "Titled Tuesday Blitz June 6 Late 2023"]
[White "Palencia Morales, Wilson Guillermo"]
[Black "Shapiro, Daniel"]
[WhiteFideId "4401859"]
[BlackFideId "2001780"]
[WhiteElo "2144"]
[BlackElo "2357"]
[Result "1-0"]
[Round "9"]
[TimeControl "180+2"]
[Date "2023.06.07"]
[WhiteClock "0:01:34"]
[BlackClock "0:00:02"]
[Board "88"]

1. d4 {[%clk 0:03:00]}  Nf6 {[%clk 0:02:59]} 2. c4 {[%clk 0:03:01]}  e6 {[%clk 0:02:59]} 3. Nf3 {[%clk 0:03:01]}  b6 {[%clk 0:02:48]} 4. g3 {[%clk 0:03:01]}  Ba6 {[%clk 0:02:45]} 5. Qc2 {[%clk 0:03:01]}  c6 {[%clk 0:02:41]} 6. Bg2 {[%clk 0:02:59]}  d5 {[%clk 0:02:42]} 7. Nbd2 {[%clk 0:02:58]}  Nbd7 {[%clk 0:02:26]} 8. O-O {[%clk 0:02:57]}  Be7 {[%clk 0:02:23]} 9. Re1 {[%clk 0:02:56]}  O-O {[%clk 0:02:21]} 10. e4 {[%clk 0:02:48]}  Bb7 {[%clk 0:01:51]} 11. e5 {[%clk 0:02:44]}  Ne8 {[%clk 0:01:50]} 12. cxd5 {[%clk 0:02:44]}  cxd5 {[%clk 0:01:47]} 13. Nf1 {[%clk 0:02:42]}  a5 {[%clk 0:01:35]} 14. h4 {[%clk 0:02:39]}  Ba6 {[%clk 0:01:26]} 15. N1h2 {[%clk 0:02:39]}  Rc8 {[%clk 0:01:23]} 16. Qd1 {[%clk 0:02:39]}  Qc7 {[%clk 0:01:21]} 17. Bg5 {[%clk 0:02:37]}  Bxg5 {[%clk 0:01:09]} 18. Nxg5 {[%clk 0:02:37]}  h6 {[%clk 0:01:02]} 19. Nh3 {[%clk 0:02:36]}  Qc2 {[%clk 0:00:57]} 20. Qh5 {[%clk 0:02:36]}  Bd3 {[%clk 0:00:36]} 21. Nf4 {[%clk 0:02:31]}  Bh7 {[%clk 0:00:24]} 22. Re2 {[%clk 0:02:24]}  Qf5 {[%clk 0:00:22]} 23. Qf3 {[%clk 0:02:22]}  f6 {[%clk 0:00:20]} 24. Bh3 {[%clk 0:02:02]}  g5 {[%clk 0:00:06]} 25. Bxf5 {[%clk 0:02:00]}  Bxf5 {[%clk 0:00:06]} 26. Nxd5 {[%clk 0:01:48]}  Kg7 {[%clk 0:00:04]} 27. exf6+ {[%clk 0:01:46]}  Nexf6 {[%clk 0:00:04]} 28. Nxf6 {[%clk 0:01:46]}  Rxf6 {[%clk 0:00:04]} 29. hxg5 {[%clk 0:01:43]}  hxg5 {[%clk 0:00:04]} 30. Qb7 {[%clk 0:01:42]}  Rd8 {[%clk 0:00:03]} 31. d5 {[%clk 0:01:39]}  Rf7 {[%clk 0:00:03]} 32. dxe6 {[%clk 0:01:38]}  Re7 {[%clk 0:00:02]} 33. Qc7 {[%clk 0:01:34]} 1-0


[Site "https://www.chess.com"]

[Event "Titled Tuesday Blitz June 6 Late 2023"]
[White "Gerbelli Neto, Eduardo"]
[Black "KorolDimitriy75"]
[WhiteFideId "2103281"]
[WhiteElo "2178"]
[BlackElo "2442"]
[Result "1-0"]
[Round "9"]
[TimeControl "180+2"]
[Date "2023.06.07"]
[WhiteClock "0:00:54"]
[BlackClock "0:00:01"]
[Board "90"]

1. e4 {[%clk 0:03:00]}  c5 {[%clk 0:02:59]} 2. Nc3 {[%clk 0:03:00]}  g6 {[%clk 0:02:59]} 3. f4 {[%clk 0:03:01]}  Bg7 {[%clk 0:03:00]} 4. Nf3 {[%clk 0:03:02]}  Nc6 {[%clk 0:03:00]} 5. Bc4 {[%clk 0:03:02]}  e6 {[%clk 0:03:00]} 6. f5 {[%clk 0:03:03]}  Nge7 {[%clk 0:02:58]} 7. fxe6 {[%clk 0:03:03]}  dxe6 {[%clk 0:02:59]} 8. d3 {[%clk 0:03:03]}  O-O {[%clk 0:02:56]} 9. O-O {[%clk 0:03:04]}  Na5 {[%clk 0:02:55]} 10. Qe1 {[%clk 0:03:04]}  Nec6 {[%clk 0:02:50]} 11. Bg5 {[%clk 0:02:56]}  f6 {[%clk 0:02:35]} 12. Be3 {[%clk 0:02:55]}  Nd4 {[%clk 0:02:11]} 13. Qf2 {[%clk 0:02:47]}  Nxc4 {[%clk 0:02:09]} 14. dxc4 {[%clk 0:02:47]}  Nxf3+ {[%clk 0:01:28]} 15. Qxf3 {[%clk 0:02:42]}  Qe7 {[%clk 0:01:18]} 16. e5 {[%clk 0:02:13]}  f5 {[%clk 0:01:06]} 17. Qg3 {[%clk 0:02:09]}  b6 {[%clk 0:00:58]} 18. Bg5 {[%clk 0:02:07]}  Qc7 {[%clk 0:00:42]} 19. Bf4 {[%clk 0:01:50]}  Bb7 {[%clk 0:00:36]} 20. Nb5 {[%clk 0:01:50]}  Qc6 {[%clk 0:00:36]} 21. Nd6 {[%clk 0:01:49]}  Rad8 {[%clk 0:00:34]} 22. Rad1 {[%clk 0:01:48]}  Ba8 {[%clk 0:00:28]} 23. Rf2 {[%clk 0:01:48]}  Rd7 {[%clk 0:00:27]} 24. h4 {[%clk 0:01:48]}  Kh8 {[%clk 0:00:16]} 25. b3 {[%clk 0:01:47]}  Rg8 {[%clk 0:00:12]} 26. Rd3 {[%clk 0:01:43]}  Bf8 {[%clk 0:00:10]} 27. Bg5 {[%clk 0:01:38]}  h6 {[%clk 0:00:09]} 28. Bf6+ {[%clk 0:01:36]}  Kh7 {[%clk 0:00:09]} 29. Rfd2 {[%clk 0:01:31]}  Bg7 {[%clk 0:00:08]} 30. h5 {[%clk 0:01:22]}  Bxf6 {[%clk 0:00:06]} 31. exf6 {[%clk 0:01:20]}  gxh5 {[%clk 0:00:06]} 32. Qh3 {[%clk 0:01:00]}  Rg4 {[%clk 0:00:01]} 33. f7 {[%clk 0:00:58]}  Rd8 {[%clk 0:00:01]} 34. Ne8 {[%clk 0:00:54]} 1-0


[Site "https://www.chess.com"]

[Event "Titled Tuesday Blitz June 6 Late 2023"]
[White "Herman, Daniel"]
[Black "Pace, Christopher"]
[WhiteFideId "30935008"]
[BlackFideId "2610167"]
[WhiteElo "1897"]
[BlackElo "2330"]
[Result "1-0"]
[Round "9"]
[TimeControl "180+2"]
[Date "2023.06.07"]
[WhiteClock "0:00:26"]
[BlackClock "0:00:02"]
[Board "91"]

1. Nf3 {[%clk 0:03:00]}  Nf6 {[%clk 0:02:59]} 2. g3 {[%clk 0:03:00]}  g6 {[%clk 0:02:58]} 3. Bg2 {[%clk 0:03:00]}  Bg7 {[%clk 0:02:58]} 4. O-O {[%clk 0:03:00]}  O-O {[%clk 0:02:58]} 5. d3 {[%clk 0:03:00]}  d5 {[%clk 0:02:56]} 6. Nc3 {[%clk 0:02:58]}  d4 {[%clk 0:02:54]} 7. Ne4 {[%clk 0:02:57]}  Nxe4 {[%clk 0:02:54]} 8. dxe4 {[%clk 0:02:58]}  c5 {[%clk 0:02:54]} 9. e3 {[%clk 0:02:56]}  Nc6 {[%clk 0:02:54]} 10. exd4 {[%clk 0:02:54]}  cxd4 {[%clk 0:02:55]} 11. Bg5 {[%clk 0:02:45]}  h6 {[%clk 0:02:53]} 12. Bd2 {[%clk 0:02:44]}  Qb6 {[%clk 0:02:39]} 13. b3 {[%clk 0:02:38]}  a5 {[%clk 0:02:29]} 14. a4 {[%clk 0:02:35]}  Be6 {[%clk 0:02:14]} 15. Ne1 {[%clk 0:02:34]}  d3 {[%clk 0:01:57]} 16. Nxd3 {[%clk 0:02:33]}  Bxa1 {[%clk 0:01:54]} 17. Qxa1 {[%clk 0:02:34]}  Kh7 {[%clk 0:01:47]} 18. Be3 {[%clk 0:02:33]}  Qc7 {[%clk 0:01:43]} 19. Nc5 {[%clk 0:02:31]}  Bc8 {[%clk 0:01:33]} 20. f4 {[%clk 0:02:17]}  b6 {[%clk 0:01:11]} 21. Nd3 {[%clk 0:02:17]}  Ba6 {[%clk 0:01:10]} 22. f5 {[%clk 0:02:05]}  Rad8 {[%clk 0:01:01]} 23. Bf4 {[%clk 0:01:58]}  Qc8 {[%clk 0:00:56]} 24. Bh3 {[%clk 0:01:52]}  g5 {[%clk 0:00:42]} 25. Be3 {[%clk 0:01:40]}  Nd4 {[%clk 0:00:31]} 26. Bxd4 {[%clk 0:01:40]}  Qxc2 {[%clk 0:00:29]} 27. Ne5 {[%clk 0:01:11]}  Bxf1 {[%clk 0:00:27]} 28. Bxf1 {[%clk 0:01:12]}  Qxe4 {[%clk 0:00:26]} 29. Bxb6 {[%clk 0:01:01]}  Rd2 {[%clk 0:00:18]} 30. f6 {[%clk 0:00:58]}  exf6 {[%clk 0:00:16]} 31. Nc4 {[%clk 0:00:54]}  Rd5 {[%clk 0:00:04]} 32. Qxf6 {[%clk 0:00:50]}  Rf5 {[%clk 0:00:05]} 33. Qc3 {[%clk 0:00:35]}  Rxf1+ {[%clk 0:00:03]} 34. Kxf1 {[%clk 0:00:36]}  Re8 {[%clk 0:00:03]} 35. Kg1 {[%clk 0:00:29]}  Qb1+ {[%clk 0:00:03]} 36. Kf2 {[%clk 0:00:27]}  Qa2+ {[%clk 0:00:02]} 37. Qb2 {[%clk 0:00:26]} 1-0


[Site "https://www.chess.com"]

[Event "Titled Tuesday Blitz June 6 Late 2023"]
[White "Buchenau, Frank"]
[Black "Rian, Kapriaga"]
[WhiteFideId "4604350"]
[BlackFideId "7103263"]
[WhiteElo "2157"]
[BlackElo "2322"]
[Result "1-0"]
[Round "9"]
[TimeControl "180+2"]
[Date "2023.06.07"]
[WhiteClock "0:01:07"]
[BlackClock "0:00:07"]
[Board "94"]

1. e4 {[%clk 0:03:00]}  c6 {[%clk 0:02:31]} 2. Nf3 {[%clk 0:02:59]}  d5 {[%clk 0:02:31]} 3. Nc3 {[%clk 0:03:00]}  dxe4 {[%clk 0:02:31]} 4. Nxe4 {[%clk 0:03:00]}  Nf6 {[%clk 0:02:31]} 5. Qe2 {[%clk 0:03:00]}  Nxe4 {[%clk 0:02:25]} 6. Qxe4 {[%clk 0:03:00]}  Qd5 {[%clk 0:02:25]} 7. Qe3 {[%clk 0:02:58]}  Bg4 {[%clk 0:02:22]} 8. Ne5 {[%clk 0:02:57]}  Bf5 {[%clk 0:02:14]} 9. Bc4 {[%clk 0:02:56]}  Qd6 {[%clk 0:02:01]} 10. Nxf7 {[%clk 0:02:54]}  Qg6 {[%clk 0:01:57]} 11. Nxh8 {[%clk 0:02:44]}  Qxg2 {[%clk 0:01:55]} 12. Rf1 {[%clk 0:02:43]}  Nd7 {[%clk 0:01:49]} 13. Bf7+ {[%clk 0:02:24]}  Kd8 {[%clk 0:01:48]} 14. d3 {[%clk 0:02:20]}  e6 {[%clk 0:01:23]} 15. Qg5+ {[%clk 0:02:12]}  Qxg5 {[%clk 0:01:21]} 16. Bxg5+ {[%clk 0:02:13]}  Be7 {[%clk 0:01:18]} 17. Bh5 {[%clk 0:02:05]}  g6 {[%clk 0:00:55]} 18. Bf3 {[%clk 0:01:48]}  Ne5 {[%clk 0:00:55]} 19. Be2 {[%clk 0:01:41]}  Bxg5 {[%clk 0:00:54]} 20. d4 {[%clk 0:01:36]}  Ke7 {[%clk 0:00:38]} 21. dxe5 {[%clk 0:01:32]}  Rxh8 {[%clk 0:00:37]} 22. Bd3 {[%clk 0:01:27]}  Bxd3 {[%clk 0:00:27]} 23. cxd3 {[%clk 0:01:28]}  Rd8 {[%clk 0:00:23]} 24. f4 {[%clk 0:01:24]}  Bh6 {[%clk 0:00:18]} 25. Ke2 {[%clk 0:01:24]}  Rd4 {[%clk 0:00:17]} 26. Ke3 {[%clk 0:01:23]}  c5 {[%clk 0:00:16]} 27. Rac1 {[%clk 0:01:21]}  b6 {[%clk 0:00:17]} 28. Rc4 {[%clk 0:01:21]}  Rd5 {[%clk 0:00:16]} 29. Ke4 {[%clk 0:01:14]}  g5 {[%clk 0:00:13]} 30. f5 {[%clk 0:01:13]}  Kd7 {[%clk 0:00:07]} 31. fxe6+ {[%clk 0:01:11]}  Kc6 {[%clk 0:00:07]} 32. e7 {[%clk 0:01:07]} 1-0


[Site "https://www.chess.com"]

[Event "Titled Tuesday Blitz June 6 Late 2023"]
[White "Celestino, Rafael Teixeira"]
[Black "Ai, Evan"]
[WhiteFideId "2108925"]
[BlackFideId "2094770"]
[WhiteElo "2311"]
[BlackElo "1963"]
[Result "0-1"]
[Round "9"]
[TimeControl "180+2"]
[Date "2023.06.07"]
[WhiteClock "0:00:11"]
[BlackClock "0:00:20"]
[Board "96"]

1. e4 {[%clk 0:03:00]}  e5 {[%clk 0:02:59]} 2. Nf3 {[%clk 0:03:00]}  Nc6 {[%clk 0:02:57]} 3. Bc4 {[%clk 0:03:01]}  Nf6 {[%clk 0:02:57]} 4. Ng5 {[%clk 0:03:01]}  d5 {[%clk 0:02:57]} 5. exd5 {[%clk 0:03:02]}  Na5 {[%clk 0:02:58]} 6. Bb5+ {[%clk 0:03:02]}  c6 {[%clk 0:02:58]} 7. dxc6 {[%clk 0:03:03]}  bxc6 {[%clk 0:02:59]} 8. Qf3 {[%clk 0:03:04]}  Qd5 {[%clk 0:02:58]} 9. Qxd5 {[%clk 0:03:03]}  Nxd5 {[%clk 0:02:59]} 10. Ba4 {[%clk 0:03:02]}  h6 {[%clk 0:02:42]} 11. Nf3 {[%clk 0:02:57]}  e4 {[%clk 0:02:39]} 12. Nd4 {[%clk 0:02:51]}  Nf4 {[%clk 0:02:23]} 13. O-O {[%clk 0:02:43]}  Bc5 {[%clk 0:02:03]} 14. Nb3 {[%clk 0:02:41]}  Nxb3 {[%clk 0:01:41]} 15. Bxc6+ {[%clk 0:02:39]}  Bd7 {[%clk 0:01:38]} 16. Bxd7+ {[%clk 0:02:38]}  Kxd7 {[%clk 0:01:39]} 17. axb3 {[%clk 0:02:39]}  Ne2+ {[%clk 0:01:33]} 18. Kh1 {[%clk 0:02:38]}  Nd4 {[%clk 0:01:31]} 19. Ra5 {[%clk 0:02:35]}  Bb6 {[%clk 0:01:29]} 20. Rd5+ {[%clk 0:02:27]}  Ke6 {[%clk 0:01:28]} 21. Nc3 {[%clk 0:02:28]}  Nxc2 {[%clk 0:01:15]} 22. Rh5 {[%clk 0:02:13]}  f5 {[%clk 0:01:06]} 23. Na4 {[%clk 0:01:54]}  Nd4 {[%clk 0:01:00]} 24. d3 {[%clk 0:01:48]}  exd3 {[%clk 0:00:58]} 25. Re1+ {[%clk 0:01:45]}  Kf6 {[%clk 0:00:56]} 26. Bd2 {[%clk 0:01:42]}  g5 {[%clk 0:00:32]} 27. Bc3 {[%clk 0:01:39]}  Kg6 {[%clk 0:00:31]} 28. Rh3 {[%clk 0:01:38]}  Nc2 {[%clk 0:00:24]} 29. Re6+ {[%clk 0:01:36]}  Kf7 {[%clk 0:00:23]} 30. Rf6+ {[%clk 0:01:36]}  Ke7 {[%clk 0:00:23]} 31. Rxd3 {[%clk 0:01:37]}  Rhd8 {[%clk 0:00:21]} 32. Rxd8 {[%clk 0:01:21]}  Rxd8 {[%clk 0:00:22]} 33. g3 {[%clk 0:01:17]}  Rd1+ {[%clk 0:00:16]} 34. Kg2 {[%clk 0:01:17]}  Ne1+ {[%clk 0:00:17]} 35. Kf1 {[%clk 0:01:06]}  Nc2+ {[%clk 0:00:06]} 36. Ke2 {[%clk 0:01:04]}  Rd6 {[%clk 0:00:03]} 37. Rxd6 {[%clk 0:00:47]}  Kxd6 {[%clk 0:00:04]} 38. Kd3 {[%clk 0:00:39]}  Na1 {[%clk 0:00:04]} 39. Nxb6 {[%clk 0:00:35]}  axb6 {[%clk 0:00:04]} 40. Bb4+ {[%clk 0:00:33]}  Kd5 {[%clk 0:00:04]} 41. Kc3 {[%clk 0:00:34]}  Ke4 {[%clk 0:00:03]} 42. Bf8 {[%clk 0:00:33]}  h5 {[%clk 0:00:03]} 43. Bg7 {[%clk 0:00:32]}  Kf3 {[%clk 0:00:03]} 44. Bd4 {[%clk 0:00:33]}  b5 {[%clk 0:00:03]} 45. Bf6 {[%clk 0:00:33]}  g4 {[%clk 0:00:03]} 46. Bd4 {[%clk 0:00:25]}  Kg2 {[%clk 0:00:03]} 47. b4 {[%clk 0:00:25]}  Kxh2 {[%clk 0:00:03]} 48. b3 {[%clk 0:00:25]}  Kg2 {[%clk 0:00:03]} 49. Kb2 {[%clk 0:00:25]}  Nxb3 {[%clk 0:00:03]} 50. Kxb3 {[%clk 0:00:25]}  f4 {[%clk 0:00:04]} 51. Kc3 {[%clk 0:00:17]}  fxg3 {[%clk 0:00:04]} 52. fxg3 {[%clk 0:00:18]}  Kxg3 {[%clk 0:00:05]} 53. Be5+ {[%clk 0:00:19]}  Kg2 {[%clk 0:00:05]} 54. Kd4 {[%clk 0:00:19]}  h4 {[%clk 0:00:06]} 55. Ke4 {[%clk 0:00:08]}  g3 {[%clk 0:00:07]} 56. Kf4 {[%clk 0:00:05]}  h3 {[%clk 0:00:08]} 57. Kg4 {[%clk 0:00:06]}  h2 {[%clk 0:00:08]} 58. Bxg3 {[%clk 0:00:06]}  h1=Q {[%clk 0:00:09]} 59. Kf5 {[%clk 0:00:06]}  Qh3+ {[%clk 0:00:10]} 60. Kf4 {[%clk 0:00:05]}  Qxg3+ {[%clk 0:00:10]} 61. Ke4 {[%clk 0:00:06]}  Qb3 {[%clk 0:00:11]} 62. Kd4 {[%clk 0:00:06]}  Qc4+ {[%clk 0:00:12]} 63. Ke5 {[%clk 0:00:06]}  Qxb4 {[%clk 0:00:13]} 64. Kd5 {[%clk 0:00:07]}  Qc4+ {[%clk 0:00:14]} 65. Ke5 {[%clk 0:00:07]}  b4 {[%clk 0:00:15]} 66. Kd6 {[%clk 0:00:08]}  b3 {[%clk 0:00:15]} 67. Ke5 {[%clk 0:00:09]}  b2 {[%clk 0:00:16]} 68. Kd6 {[%clk 0:00:09]}  b1=Q {[%clk 0:00:17]} 69. Ke5 {[%clk 0:00:10]}  Qbd3 {[%clk 0:00:17]} 70. Kf6 {[%clk 0:00:10]}  Qdd5 {[%clk 0:00:18]} 71. Ke7 {[%clk 0:00:10]}  Qcc6 {[%clk 0:00:19]} 72. Kf8 {[%clk 0:00:11]}  Qdd7 {[%clk 0:00:19]} 73. Kg8 {[%clk 0:00:11]}  Qcc8# {[%clk 0:00:20]} 0-1


[Site "https://www.chess.com"]

[Event "Titled Tuesday Blitz June 6 Late 2023"]
[White "Simonovic, Miroslav"]
[Black "Lalanne, Pablo"]
[WhiteFideId "919152"]
[BlackFideId "112151"]
[WhiteElo "2075"]
[BlackElo "2120"]
[Result "0-1"]
[Round "9"]
[TimeControl "180+2"]
[Date "2023.06.07"]
[WhiteClock "0:00:14"]
[BlackClock "0:00:10"]
[Board "97"]

1. d4 {[%clk 0:03:00]}  Nf6 {[%clk 0:02:59]} 2. Bg5 {[%clk 0:03:01]}  e6 {[%clk 0:02:59]} 3. e4 {[%clk 0:03:00]}  c5 {[%clk 0:02:59]} 4. Bxf6 {[%clk 0:02:49]}  Qxf6 {[%clk 0:02:59]} 5. c3 {[%clk 0:02:49]}  cxd4 {[%clk 0:02:52]} 6. cxd4 {[%clk 0:02:50]}  Nc6 {[%clk 0:02:50]} 7. Nf3 {[%clk 0:02:50]}  Bb4+ {[%clk 0:02:49]} 8. Nc3 {[%clk 0:02:49]}  O-O {[%clk 0:02:45]} 9. Be2 {[%clk 0:02:35]}  Qf4 {[%clk 0:02:42]} 10. Qd3 {[%clk 0:02:31]}  b6 {[%clk 0:02:35]} 11. O-O {[%clk 0:02:26]}  a5 {[%clk 0:02:34]} 12. a4 {[%clk 0:02:13]}  Ba6 {[%clk 0:02:31]} 13. Nb5 {[%clk 0:02:13]}  d5 {[%clk 0:02:15]} 14. e5 {[%clk 0:02:05]}  f6 {[%clk 0:02:09]} 15. Rac1 {[%clk 0:01:57]}  Rac8 {[%clk 0:02:05]} 16. exf6 {[%clk 0:01:45]}  Qxf6 {[%clk 0:01:56]} 17. Rc2 {[%clk 0:01:34]}  Qh6 {[%clk 0:01:42]} 18. Rfc1 {[%clk 0:01:30]}  Ne7 {[%clk 0:01:26]} 19. Rxc8 {[%clk 0:01:08]}  Nxc8 {[%clk 0:01:26]} 20. Rc2 {[%clk 0:01:02]}  Bd6 {[%clk 0:01:20]} 21. h3 {[%clk 0:00:59]}  Bf4 {[%clk 0:00:59]} 22. Qa3 {[%clk 0:00:30]}  Bxb5 {[%clk 0:00:52]} 23. axb5 {[%clk 0:00:29]}  Bd6 {[%clk 0:00:44]} 24. Qe3 {[%clk 0:00:28]}  Bf4 {[%clk 0:00:37]} 25. Qc3 {[%clk 0:00:23]}  Nd6 {[%clk 0:00:27]} 26. Bd3 {[%clk 0:00:23]}  Rc8 {[%clk 0:00:24]} 27. Qa3 {[%clk 0:00:22]}  Rxc2 {[%clk 0:00:23]} 28. Bxc2 {[%clk 0:00:22]}  Nxb5 {[%clk 0:00:21]} 29. Qe7 {[%clk 0:00:22]}  Nd6 {[%clk 0:00:16]} 30. Ne5 {[%clk 0:00:20]}  Qf6 {[%clk 0:00:14]} 31. Qxd6 {[%clk 0:00:17]}  g6 {[%clk 0:00:12]} 32. Qb8+ {[%clk 0:00:16]}  Kg7 {[%clk 0:00:12]} 33. Qc7+ {[%clk 0:00:15]}  Kg8 {[%clk 0:00:09]} 34. Qxb6 {[%clk 0:00:14]}  Bxe5 {[%clk 0:00:09]} 35. dxe5 {[%clk 0:00:14]}  Qxe5 {[%clk 0:00:10]} 36. Qb8+ {[%clk 0:00:12]}  Qxb8 {[%clk 0:00:09]} 37. Bd3 {[%clk 0:00:13]}  Qxb2 {[%clk 0:00:09]} 38. Kh2 {[%clk 0:00:14]}  a4 {[%clk 0:00:09]} 39. Be2 {[%clk 0:00:14]}  a3 {[%clk 0:00:10]} 0-1


[Site "https://www.chess.com"]

[Event "Titled Tuesday Blitz June 6 Late 2023"]
[White "Wang, Alexander J"]
[Black "Romero Ruscalleda, Josep"]
[WhiteFideId "30955270"]
[BlackFideId "2231859"]
[WhiteElo "2272"]
[BlackElo "2183"]
[Result "0-1"]
[Round "9"]
[TimeControl "180+2"]
[Date "2023.06.07"]
[WhiteClock "0:00:15"]
[BlackClock "0:01:01"]
[Board "98"]

1. e4 {[%clk 0:03:00]}  g6 {[%clk 0:03:00]} 2. d4 {[%clk 0:02:58]}  Bg7 {[%clk 0:03:01]} 3. Nf3 {[%clk 0:02:58]}  d6 {[%clk 0:03:01]} 4. Nc3 {[%clk 0:02:58]}  a6 {[%clk 0:03:02]} 5. Be3 {[%clk 0:02:56]}  b5 {[%clk 0:03:01]} 6. a3 {[%clk 0:02:56]}  Bb7 {[%clk 0:03:01]} 7. Be2 {[%clk 0:02:55]}  Nf6 {[%clk 0:03:01]} 8. Bd3 {[%clk 0:02:52]}  O-O {[%clk 0:03:00]} 9. O-O {[%clk 0:02:51]}  Nbd7 {[%clk 0:03:00]} 10. h3 {[%clk 0:02:48]}  c5 {[%clk 0:03:00]} 11. d5 {[%clk 0:02:35]}  b4 {[%clk 0:02:49]} 12. axb4 {[%clk 0:02:30]}  cxb4 {[%clk 0:02:48]} 13. Ne2 {[%clk 0:02:16]}  Nc5 {[%clk 0:02:45]} 14. Ng3 {[%clk 0:02:14]}  Nxd3 {[%clk 0:02:42]} 15. cxd3 {[%clk 0:02:11]}  Nd7 {[%clk 0:02:37]} 16. Qb3 {[%clk 0:02:08]}  a5 {[%clk 0:02:34]} 17. d4 {[%clk 0:01:58]}  Qb6 {[%clk 0:02:27]} 18. Ne2 {[%clk 0:01:42]}  Qb5 {[%clk 0:02:25]} 19. Nc3 {[%clk 0:01:30]}  Qb6 {[%clk 0:01:51]} 20. Na4 {[%clk 0:01:27]}  Qb5 {[%clk 0:01:50]} 21. Rfc1 {[%clk 0:01:14]}  Rfc8 {[%clk 0:01:48]} 22. Rxc8+ {[%clk 0:01:02]}  Rxc8 {[%clk 0:01:47]} 23. Rc1 {[%clk 0:00:54]}  Rxc1+ {[%clk 0:01:45]} 24. Bxc1 {[%clk 0:00:55]}  Ba6 {[%clk 0:01:46]} 25. Be3 {[%clk 0:00:46]}  h6 {[%clk 0:01:41]} 26. Qa2 {[%clk 0:00:21]}  Nf6 {[%clk 0:01:35]} 27. e5 {[%clk 0:00:19]}  Nxd5 {[%clk 0:01:27]} 28. exd6 {[%clk 0:00:17]}  exd6 {[%clk 0:01:26]} 29. b3 {[%clk 0:00:17]}  Nc3 {[%clk 0:01:06]} 30. Nxc3 {[%clk 0:00:15]}  bxc3 {[%clk 0:01:06]} 31. Qc2 {[%clk 0:00:15]}  Qd3 {[%clk 0:01:07]} 32. Qxd3 {[%clk 0:00:15]}  Bxd3 {[%clk 0:01:06]} 33. Ne1 {[%clk 0:00:16]}  Be2 {[%clk 0:01:02]} 34. f3 {[%clk 0:00:15]}  Bd1 {[%clk 0:01:02]} 35. Kf2 {[%clk 0:00:15]}  Bxb3 {[%clk 0:01:01]} 0-1


[Site "https://www.chess.com"]